[Event "3rd FIDE WCCC Rapid G12 2019"]
[Site "Minsk"]
[Date "2019.08.17"]
[Round "6.4"]
[White "Babic, Milana"]
[Black "Kaldarova, Ayaulym"]
[Result "0-1"]
[ECO "A05"]
[WhiteElo "1689"]
[BlackElo "1549"]
[Annotator "NA"]
[PlyCount "106"]
[EventDate "2019.08.16"]
[EventType "swiss"]
[EventCountry "BLR"]
[SourceTitle "playchess.com"]
[Source "ChessBase"]
[SourceQuality "1"]
[TimeControl "600+5"]

1. Nf3 {[%emt 0:00:00]} Nf6 {[%emt 0:00:00]} 2. g3 {[%emt 0:00:00]} e6 {[%emt 0:00:00]} 3. Bg2 {[%emt 0:00:00]} d5 {[%emt 0:00:00]} 4. d3 {[%emt 0:00:00]} c5 {[%emt 0:00:03]} 5. O-O {[%emt 0:00:01]} Nc6 {[%emt 0:00:04]} 6. Nbd2 {[%emt 0:00:01]} g6 {[%emt 0:00:03]} 7. b3 {[%emt 0:00:00]} Bg7 {[%emt 0:00:01]} 8. Bb2 {[%emt 0:00:01]} O-O {[%emt 0:00:04]} 9. e3 {[%emt 0:00:03]} b6 {[%emt 0:00:06]} 10. c4 {[%emt 0:00:07]} Bb7 {[%emt 0:00:03]} 11. a3 {[%emt 0:00:01]} Rc8 {[%emt 0:00:09]} 12. Rc1 {[%emt 0:00:07]} Qe7 {[%emt 0:00:10]} 13. Qe2 {[%emt 0:00:16]} Rfd8 {[%emt 0:00:06]} 14. Rfe1 {[%emt 0:00:12]} e5 {[%emt 0:00:14]} 15. cxd5 {[%emt 0:02:05]} Nxd5 {[%emt 0:00:04]} 16. Red1 {[%emt 0:00:02]} Ba6 {[%emt 0:00:23]} 17. Ne4 {[%emt 0:01:00]} f5 {[%emt 0:00:18]} 18. Nc3 {[%emt 0:00:01]} e4 {[%emt 0:00:31]} 19. Ne1 Nxc3 {[%emt 0:00:36]} 20. Bxc3 {[%emt 0:00:24]} Bxc3 {[%emt 0:00:06]} 21. Rxc3 {[%emt 0:00:02]} Ne5 {[%emt 0:00:06]} 22. Bf1 {[%emt 0:01:25]} Bxd3 {[%emt 0:01:58]} 23. Qa2 {[%emt 0:01:14]} Bxf1 {[%emt 0:00:23]} 24. Rxd8+ {[%emt 0:00:07]} Rxd8 {[%emt 0:00:05]} 25. Kxf1 {[%emt 0:00:02]} Kg7 {[%emt 0:00:08]} 26. Qa1 {[%emt 0:00:44]} Qf6 {[%emt 0:00:09]} 27. b4 {[%emt 0:00:47]} c4 {[%emt 0:01:08]} 28. Nc2 {[%emt 0:00:01]} Rd3 {[%emt 0:01:24]} 29. Nd4 {[%emt 0:00:01]} Rxc3 {[%emt 0:00:09]} 30. Qxc3 {[%emt 0:00:02]} Nf3 {[%emt 0:00:26]} 31. Kg2 {[%emt 0:00:00]} Nxd4 32. exd4 b5 {[%emt 0:00:14]} 33. a4 {[%emt 0:00:02]} a6 {[%emt 0:00:15]} 34. axb5 {[%emt 0:00:01]} axb5 {[%emt 0:00:00]} 35. Qa1 {[%emt 0:00:01]} Kh6 {[%emt 0:00:13]} 36. Qc1+ {[%emt 0:00:28]} g5 {[%emt 0:00:06]} 37. h4 {[%emt 0:00:06]} Kg6 {[%emt 0:00:08]} 38. h5+ {[%emt 0:00:50]} Kxh5 {[%emt 0:00:38]} 39. Qe3 {[%emt 0:00:27]} Kg6 {[%emt 0:00:59]} 40. g4 {[%emt 0:00:12]} Qe6 {[%emt 0:00:01]} 41. f3 {[%emt 0:00:23]} exf3+ {[%emt 0:00:02]} 42. Qxf3 {[%emt 0:00:08]} fxg4 {[%emt 0:00:23]} 43. Qd1 {[%emt 0:00:53]} Qe4+ {[%emt 0:00:03]} 44. Kg1 {[%emt 0:00:08]} Qe3+ {[%emt 0:00:02]} 45. Kh2 {[%emt 0:00:03]} Qf2+ {[%emt 0:00:08]} 46. Kh1 {[%emt 0:00:03]} Qf3+ {[%emt 0:00:01]} 47. Qxf3 gxf3 {[%emt 0:00:00]} 48. Kg1 {[%emt 0:00:03]} c3 {[%emt 0:00:04]} 49. d5 {[%emt 0:00:02]} c2 {[%emt 0:00:05]} 50. d6 {[%emt 0:00:00]} c1=Q+ {[%emt 0:00:04]} 51. Kf2 {[%emt 0:00:01]} Qd2+ {[%emt 0:00:01]} 52. Kxf3 {[%emt 0:00:01]} Qxd6 {[%emt 0:00:01]} 53. Ke4 {[%emt 0:00:01]} Qxb4+ {[%emt 0:00:03]} 0-1

[Event "3rd FIDE WCCC Rapid G12 2019"]
[Site "Minsk"]
[Date "2019.08.17"]
[Round "6.5"]
[White "Misiuk, Monika"]
[Black "Babic, Masa"]
[Result "0-1"]
[ECO "A53"]
[WhiteElo "1339"]
[BlackElo "1719"]
[Annotator "NA"]
[PlyCount "112"]
[EventDate "2019.08.16"]
[EventType "swiss"]
[EventCountry "BLR"]
[SourceTitle "playchess.com"]
[Source "ChessBase"]
[SourceQuality "1"]
[TimeControl "600+5"]

1. d4 {[%emt 0:00:00]} Nf6 {[%emt 0:00:00]} 2. c4 {[%emt 0:00:00]} d6 {[%emt 0:00:00]} 3. Nc3 {[%emt 0:00:03]} Nbd7 {[%emt 0:00:00]} 4. Bg5 {[%emt 0:00:06]} c6 {[%emt 0:00:24]} 5. Nf3 {[%emt 0:00:04]} e5 {[%emt 0:00:03]} 6. e3 {[%emt 0:01:23]} Be7 {[%emt 0:00:04]} 7. Be2 {[%emt 0:00:05]} O-O {[%emt 0:00:06]} 8. O-O {[%emt 0:00:03]} a6 {[%emt 0:00:12]} 9. dxe5 {[%emt 0:00:15]} dxe5 {[%emt 0:00:03]} 10. a4 {[%emt 0:00:17]} Qc7 {[%emt 0:00:21]} 11. Qc2 {[%emt 0:00:12]} a5 {[%emt 0:00:30]} 12. Rfd1 {[%emt 0:00:21]} Nc5 {[%emt 0:00:45]} 13. Bxf6 {[%emt 0:01:19]} Bxf6 {[%emt 0:00:04]} 14. Ne4 {[%emt 0:00:04]} Nxe4 {[%emt 0:01:01]} 15. Qxe4 {[%emt 0:00:04]} g6 {[%emt 0:00:14]} 16. Qc2 {[%emt 0:00:23]} Be6 {[%emt 0:00:39]} 17. Rd2 {[%emt 0:00:24]} Rac8 {[%emt 0:00:09]} 18. Rad1 {[%emt 0:00:16]} Qb6 {[%emt 0:01:27]} 19. b3 {[%emt 0:00:41]} Qb4 {[%emt 0:00:24]} 20. Qb1 {[%emt 0:01:04]} Bf5 {[%emt 0:02:27]} 21. e4 {[%emt 0:00:48]} Be6 {[%emt 0:00:24]} 22. h3 {[%emt 0:00:08]} Qb6 {[%emt 0:00:45]} 23. Qc2 {[%emt 0:00:44]} Rfe8 {[%emt 0:00:10]} 24. Qc3 {[%emt 0:00:43]} Bg7 {[%emt 0:00:37]} 25. Rd6 {[%emt 0:01:00]} Bf8 {[%emt 0:00:34]} 26. R6d3 {[%emt 0:00:44]} Bb4 {[%emt 0:00:21]} 27. Qc2 {[%emt 0:00:19]} Bc5 {[%emt 0:00:02]} 28. Bf1 {[%emt 0:00:04]} f5 {[%emt 0:00:11]} 29. R3d2 {[%emt 0:00:36]} fxe4 {[%emt 0:00:09]} 30. Qxe4 {[%emt 0:00:04]} Bf5 {[%emt 0:00:01]} 31. Qh4 {[%emt 0:00:11]} Be7 {[%emt 0:00:02]} 32. Ng5 {[%emt 0:00:03]} Bxg5 {[%emt 0:00:02]} 33. Qxg5 {[%emt 0:00:01]} Qxb3 {[%emt 0:00:09]} 34. Bd3 {[%emt 0:00:02]} Bxd3 {[%emt 0:00:07]} 35. Rxd3 {[%emt 0:00:01]} Qxc4 {[%emt 0:00:02]} 36. Rd7 {[%emt 0:00:04]} Qe6 {[%emt 0:00:08]} 37. Qh6 {[%emt 0:00:03]} Re7 {[%emt 0:00:02]} 38. Rd8+ {[%emt 0:00:02]} Rxd8 {[%emt 0:00:03]} 39. Rxd8+ {[%emt 0:00:03]} Re8 {[%emt 0:00:01]} 40. Qg5 {[%emt 0:00:05]} Kf7 {[%emt 0:00:10]} 41. Rxe8 {[%emt 0:00:10]} Qxe8 {[%emt 0:00:02]} 42. Qh4 {[%emt 0:00:03]} Kg7 {[%emt 0:00:01]} 43. Qe4 {[%emt 0:00:04]} Qe6 {[%emt 0:00:01]} 44. Kh2 {[%emt 0:00:05]} b5 {[%emt 0:00:02]} 45. g3 {[%emt 0:00:06]} b4 {[%emt 0:00:01]} 46. Qd3 {[%emt 0:00:10]} Qd5 {[%emt 0:00:02]} 47. Qa6 {[%emt 0:00:05]} b3 {[%emt 0:00:04]} 48. Qa7+ {[%emt 0:00:02]} Kf6 {[%emt 0:00:03]} 49. Qxh7 {[%emt 0:00:10]} b2 {[%emt 0:00:01]} 50. Qh8+ {[%emt 0:00:02]} Ke6 {[%emt 0:00:03]} 51. Qe8+ {[%emt 0:00:02]} Kd6 {[%emt 0:00:01]} 52. Qd8+ {[%emt 0:00:02]} Kc5 {[%emt 0:00:08]} 53. Qxa5+ {[%emt 0:00:04]} Kc4 {[%emt 0:00:01]} 54. Qe1 {[%emt 0:00:14]} Kb3 {[%emt 0:00:18]} 55. Qe3+ {[%emt 0:00:15]} Ka2 {[%emt 0:00:01]} 56. Qe2 {[%emt 0:00:01]} Ka1 {[%emt 0:00:05]} 0-1

[Event "3rd FIDE WCCC Rapid G12 2019"]
[Site "Minsk"]
[Date "2019.08.17"]
[Round "6.6"]
[White "Basova, Yuliya"]
[Black "Mikheeva, Galina"]
[Result "0-1"]
[ECO "C45"]
[WhiteElo "1699"]
[BlackElo "1952"]
[Annotator "NA"]
[PlyCount "94"]
[EventDate "2019.08.16"]
[EventType "swiss"]
[EventCountry "BLR"]
[SourceTitle "playchess.com"]
[Source "ChessBase"]
[SourceQuality "1"]
[TimeControl "600+5"]

1. e4 {[%emt 0:00:00]} e5 {[%emt 0:00:00]} 2. Nf3 {[%emt 0:00:00]} Nc6 {[%emt 0:00:00]} 3. d4 {[%emt 0:00:00]} exd4 {[%emt 0:00:00]} 4. Nxd4 {[%emt 0:00:01]} Nf6 {[%emt 0:00:00]} 5. Nxc6 {[%emt 0:00:04]} bxc6 {[%emt 0:00:00]} 6. e5 {[%emt 0:00:03]} Qe7 {[%emt 0:00:00]} 7. Qe2 {[%emt 0:00:03]} Nd5 {[%emt 0:00:00]} 8. c4 {[%emt 0:00:03]} Ba6 {[%emt 0:00:01]} 9. Nd2 {[%emt 0:00:01]} g6 {[%emt 0:00:07]} 10. Qe4 {[%emt 0:00:04]} Nb6 {[%emt 0:00:13]} 11. Bd3 {[%emt 0:00:39]} Bg7 {[%emt 0:00:10]} 12. Nf3 {[%emt 0:00:40]} f6 {[%emt 0:00:28]} 13. exf6 {[%emt 0:01:20]} Qxe4+ {[%emt 0:00:02]} 14. Bxe4 {[%emt 0:00:02]} Bxf6 {[%emt 0:00:01]} 15. c5 {[%emt 0:02:58]} Na4 {[%emt 0:00:02]} 16. Rb1 {[%emt 0:00:14]} Nxc5 {[%emt 0:00:03]} 17. Bc2 {[%emt 0:00:09]} O-O {[%emt 0:01:02]} 18. Be3 {[%emt 0:00:23]} Rfe8 {[%emt 0:00:41]} 19. Kd1 {[%emt 0:01:51]} Nd3 {[%emt 0:01:11]} 20. Bb3+ {[%emt 0:00:26]} Kg7 {[%emt 0:00:24]} 21. Kc2 {[%emt 0:00:10]} Nxf2 {[%emt 0:00:32]} 22. Bxf2 {[%emt 0:00:20]} Re2+ {[%emt 0:00:00]} 23. Kd1 {[%emt 0:00:08]} Rxf2 {[%emt 0:00:02]} 24. Rg1 {[%emt 0:00:14]} Rxb2 {[%emt 0:00:53]} 25. Rxb2 {[%emt 0:00:08]} Bxb2 {[%emt 0:00:02]} 26. Re1 {[%emt 0:00:07]} Bf6 {[%emt 0:00:09]} 27. g4 {[%emt 0:00:09]} g5 {[%emt 0:01:48]} 28. Re3 {[%emt 0:00:14]} d5 {[%emt 0:00:42]} 29. Re6 {[%emt 0:00:09]} Bb7 {[%emt 0:00:29]} 30. Ba4 {[%emt 0:00:12]} Kf7 {[%emt 0:00:29]} 31. Re3 {[%emt 0:00:20]} Re8 {[%emt 0:00:53]} 32. Rb3 {[%emt 0:00:09]} Ba8 {[%emt 0:00:01]} 33. h3 {[%emt 0:00:10]} h6 {[%emt 0:00:06]} 34. Nd2 {[%emt 0:00:16]} Rd8 {[%emt 0:00:27]} 35. Nf1 {[%emt 0:00:08]} c5 {[%emt 0:00:30]} 36. Ng3 {[%emt 0:00:09]} c4 {[%emt 0:00:07]} 37. Rb1 {[%emt 0:00:07]} d4 {[%emt 0:00:11]} 38. Nf5 {[%emt 0:00:02]} Bg7 {[%emt 0:00:09]} 39. Nxg7 {[%emt 0:00:12]} Kxg7 {[%emt 0:00:02]} 40. Rb4 {[%emt 0:00:11]} Bd5 {[%emt 0:00:03]} 41. Bb5 {[%emt 0:00:02]} c3 {[%emt 0:00:12]} 42. Bd3 {[%emt 0:00:06]} Bxa2 {[%emt 0:00:22]} 43. Rb7 {[%emt 0:00:04]} Rd7 {[%emt 0:00:01]} 44. Rxa7 {[%emt 0:00:02]} Bb3+ {[%emt 0:00:01]} 45. Kc1 {[%emt 0:00:03]} Re7 {[%emt 0:00:06]} 46. Bc2 {[%emt 0:00:25]} Re1+ {[%emt 0:00:02]} 47. Bd1 {[%emt 0:00:02]} Rxd1# {[%emt 0:00:01]} 0-1

[Event "3rd FIDE WCCC Rapid G12 2019"]
[Site "Minsk"]
[Date "2019.08.17"]
[Round "7.1"]
[White "Kirdyashkina, Ekaterina"]
[Black "Shubenkova, Veronika"]
[Result "0-1"]
[ECO "C01"]
[WhiteElo "1691"]
[BlackElo "1740"]
[Annotator "NA"]
[PlyCount "96"]
[EventDate "2019.08.16"]
[EventType "swiss"]
[EventCountry "BLR"]
[SourceTitle "playchess.com"]
[Source "ChessBase"]
[SourceQuality "1"]
[TimeControl "600+5"]

1. e4 {[%emt 0:00:02]} e6 {[%emt 0:00:00]} 2. d4 {[%emt 0:00:05]} d5 {[%emt 0:00:00]} 3. exd5 {[%emt 0:00:04]} exd5 {[%emt 0:00:00]} 4. c4 {[%emt 0:00:03]} Nf6 {[%emt 0:00:21]} 5. Nc3 {[%emt 0:00:03]} c6 {[%emt 0:00:07]} 6. Nf3 {[%emt 0:00:03]} Bd6 {[%emt 0:00:20]} 7. c5 {[%emt 0:00:07]} Bc7 {[%emt 0:00:15]} 8. Bg5 {[%emt 0:00:03]} O-O {[%emt 0:00:02]} 9. Be2 {[%emt 0:00:01]} Bg4 {[%emt 0:00:47]} 10. O-O {[%emt 0:00:04]} Nbd7 {[%emt 0:00:08]} 11. h3 {[%emt 0:00:09]} Bxf3 {[%emt 0:00:32]} 12. Bxf3 {[%emt 0:00:02]} Qb8 {[%emt 0:00:30]} 13. b4 {[%emt 0:00:18]} h6 {[%emt 0:00:05]} 14. Be3 {[%emt 0:00:16]} Re8 {[%emt 0:00:24]} 15. Rb1 {[%emt 0:00:03]} a6 16. a4 {[%emt 0:00:01]} Bf4 {[%emt 0:00:31]} 17. Bxf4 {[%emt 0:00:08]} Qxf4 {[%emt 0:00:02]} 18. b5 {[%emt 0:00:01]} axb5 {[%emt 0:00:16]} 19. axb5 {[%emt 0:00:01]} Ra3 {[%emt 0:00:48]} 20. bxc6 {[%emt 0:00:18]} bxc6 {[%emt 0:00:05]} 21. Na4 {[%emt 0:00:04]} Ne4 {[%emt 0:00:38]} 22. Rb2 {[%emt 0:03:28]} Ng5 {[%emt 0:00:24]} 23. Bg4 {[%emt 0:00:46]} Nf6 {[%emt 0:00:35]} 24. g3 {[%emt 0:01:00]} Qe4 {[%emt 0:01:17]} 25. Re2 {[%emt 0:00:05]} Nxh3+ {[%emt 0:00:08]} 26. Bxh3 {[%emt 0:00:49]} Qxe2 {[%emt 0:00:02]} 27. Qxe2 {[%emt 0:00:09]} Rxe2 {[%emt 0:00:02]} 28. Nb6 {[%emt 0:00:02]} Rd3 {[%emt 0:00:23]} 29. Nd7 {[%emt 0:00:13]} Rxd4 {[%emt 0:00:24]} 30. Nxf6+ {[%emt 0:00:07]} gxf6 {[%emt 0:00:01]} 31. Bd7 {[%emt 0:00:01]} Rc2 {[%emt 0:00:02]} 32. Bxc6 {[%emt 0:00:05]} Rxc5 {[%emt 0:00:02]} 33. Bd7 {[%emt 0:00:03]} Kg7 {[%emt 0:00:11]} 34. Re1 {[%emt 0:00:06]} Rc2 {[%emt 0:00:12]} 35. Re7 {[%emt 0:00:22]} Re4 {[%emt 0:00:14]} 36. Rxe4 {[%emt 0:00:07]} dxe4 {[%emt 0:00:01]} 37. Bf5 {[%emt 0:00:02]} Rc4 {[%emt 0:00:01]} 38. Kf1 {[%emt 0:00:00]} h5 {[%emt 0:00:04]} 39. Ke2 {[%emt 0:00:02]} Kh6 {[%emt 0:00:08]} 40. Ke3 {[%emt 0:00:05]} Rc3+ {[%emt 0:00:09]} 41. Ke2 {[%emt 0:00:31]} Rc2+ {[%emt 0:00:16]} 42. Ke3 {[%emt 0:00:02]} Rc4 {[%emt 0:00:02]} 43. Bxe4 {[%emt 0:00:04]} Rxe4+ {[%emt 0:00:13]} 44. Kxe4 {[%emt 0:00:03]} Kg5 {[%emt 0:00:02]} 45. f3 {[%emt 0:00:34]} f5+ {[%emt 0:00:02]} 46. Ke5 {[%emt 0:00:01]} f6+ {[%emt 0:00:06]} 47. Ke6 {[%emt 0:00:36]} f4 {[%emt 0:00:01]} 48. gxf4+ {[%emt 0:00:09]} Kxf4 {[%emt 0:00:02]} 0-1

[Event "3rd FIDE WCCC Rapid G12 2019"]
[Site "Minsk"]
[Date "2019.08.17"]
[Round "7.2"]
[White "Komissarova, Soigina"]
[Black "Kaldarova, Ayaulym"]
[Result "0-1"]
[ECO "C14"]
[WhiteElo "1663"]
[BlackElo "1549"]
[Annotator "NA"]
[PlyCount "70"]
[EventDate "2019.08.16"]
[EventType "swiss"]
[EventCountry "BLR"]
[SourceTitle "playchess.com"]
[Source "ChessBase"]
[SourceQuality "1"]
[TimeControl "600+5"]

1. e4 {[%emt 0:00:00]} e6 {[%emt 0:00:00]} 2. d4 {[%emt 0:00:00]} d5 {[%emt 0:00:00]} 3. Nc3 {[%emt 0:00:00]} Nf6 {[%emt 0:00:00]} 4. Bg5 {[%emt 0:00:02]} Be7 {[%emt 0:00:00]} 5. e5 {[%emt 0:00:01]} Nfd7 {[%emt 0:00:00]} 6. Bxe7 {[%emt 0:00:02]} Qxe7 {[%emt 0:00:02]} 7. Qg4 {[%emt 0:00:01]} O-O {[%emt 0:00:09]} 8. Nf3 {[%emt 0:00:03]} c5 {[%emt 0:00:05]} 9. Bd3 {[%emt 0:00:02]} g6 {[%emt 0:00:27]} 10. O-O-O {[%emt 0:00:51]} Nc6 {[%emt 0:00:06]} 11. Rhe1 {[%emt 0:00:55]} cxd4 {[%emt 0:00:04]} 12. Nb5 {[%emt 0:00:02]} Nb4 {[%emt 0:00:42]} 13. a3 {[%emt 0:00:33]} Nxd3+ {[%emt 0:00:08]} 14. Rxd3 {[%emt 0:00:02]} b6 {[%emt 0:00:16]} 15. Nfxd4 {[%emt 0:00:22]} Ba6 {[%emt 0:00:09]} 16. Rh3 {[%emt 0:00:14]} Bxb5 {[%emt 0:00:20]} 17. Nxb5 {[%emt 0:00:02]} Rac8 {[%emt 0:00:15]} 18. Nd6 {[%emt 0:00:03]} Rc6 {[%emt 0:00:31]} 19. f4 {[%emt 0:01:32]} f5 {[%emt 0:02:10]} 20. Qf3 {[%emt 0:00:35]} Nc5 {[%emt 0:00:21]} 21. g4 {[%emt 0:00:34]} Ne4 {[%emt 0:01:42]} 22. gxf5 {[%emt 0:00:19]} exf5 {[%emt 0:00:08]} 23. Nxe4 {[%emt 0:00:37]} fxe4 {[%emt 0:00:36]} 24. Qg3 {[%emt 0:00:45]} Qc5 {[%emt 0:00:22]} 25. Re2 {[%emt 0:00:18]} d4 {[%emt 0:00:12]} 26. Qh4 {[%emt 0:00:13]} Rc7 {[%emt 0:00:27]} 27. Rg2 {[%emt 0:01:29]} d3 {[%emt 0:00:40]} 28. c3 {[%emt 0:00:19]} e3 {[%emt 0:00:15]} 29. Rf3 {[%emt 0:01:41]} Qd5 {[%emt 0:01:21]} 30. Qg3 {[%emt 0:00:25]} d2+ {[%emt 0:00:07]} 31. Kd1 {[%emt 0:00:14]} Qb3+ {[%emt 0:00:04]} 32. Ke2 {[%emt 0:00:04]} d1=Q+ {[%emt 0:00:10]} 33. Kxe3 {[%emt 0:00:02]} Rxc3+ {[%emt 0:00:19]} 34. bxc3 {[%emt 0:00:05]} Qxc3+ {[%emt 0:00:01]} 35. Ke4 {[%emt 0:00:01]} Qcd4# {[%emt 0:00:02]} 0-1

[Event "3rd FIDE WCCC Rapid G12 2019"]
[Site "Minsk"]
[Date "2019.08.17"]
[Round "7.3"]
[White "Vlasova, Olesia"]
[Black "Mikheeva, Galina"]
[Result "1/2-1/2"]
[ECO "A88"]
[WhiteElo "1799"]
[BlackElo "1952"]
[Annotator "NA"]
[PlyCount "88"]
[EventDate "2019.08.16"]
[EventType "swiss"]
[EventCountry "BLR"]
[SourceTitle "playchess.com"]
[Source "ChessBase"]
[SourceQuality "1"]
[TimeControl "600+5"]

1. Nf3 {[%emt 0:00:00]} f5 {[%emt 0:00:00]} 2. c4 {[%emt 0:00:02]} Nf6 {[%emt 0:00:00]} 3. g3 {[%emt 0:00:01]} g6 {[%emt 0:00:00]} 4. Bg2 {[%emt 0:00:01]} Bg7 {[%emt 0:00:00]} 5. O-O {[%emt 0:00:03]} O-O {[%emt 0:00:00]} 6. d4 {[%emt 0:00:03]} d6 {[%emt 0:00:02]} 7. Nc3 c6 8. d5 {[%emt 0:00:41]} e5 {[%emt 0:00:22]} 9. Bg5 {[%emt 0:01:03]} h6 {[%emt 0:00:57]} 10. Bxf6 {[%emt 0:00:00]} Qxf6 11. e4 f4 {[%emt 0:01:36]} 12. Qd3 {[%emt 0:00:44]} g5 {[%emt 0:02:06]} 13. Rfd1 {[%emt 0:01:58]} c5 {[%emt 0:00:03]} 14. h4 {[%emt 0:01:48]} Bg4 {[%emt 0:01:31]} 15. hxg5 {[%emt 0:00:38]} hxg5 {[%emt 0:00:01]} 16. Rf1 {[%emt 0:00:34]} Qh6 {[%emt 0:00:57]} 17. Nh2 {[%emt 0:00:45]} Bd7 {[%emt 0:01:30]} 18. g4 {[%emt 0:01:04]} Kf7 {[%emt 0:00:12]} 19. Qh3 {[%emt 0:00:05]} Qf6 {[%emt 0:00:37]} 20. Bf3 {[%emt 0:00:58]} Rh8 21. Qg2 Na6 {[%emt 0:00:20]} 22. Rfd1 {[%emt 0:00:23]} Rh4 {[%emt 0:00:21]} 23. a3 {[%emt 0:00:12]} Rah8 {[%emt 0:00:02]} 24. Nf1 {[%emt 0:00:08]} Rh1+ {[%emt 0:00:24]} 25. Qxh1 {[%emt 0:00:04]} Rxh1+ {[%emt 0:00:01]} 26. Kxh1 {[%emt 0:00:05]} Qh6+ {[%emt 0:00:02]} 27. Kg2 {[%emt 0:00:04]} Nc7 {[%emt 0:00:16]} 28. Nh2 {[%emt 0:00:04]} Ne8 {[%emt 0:00:03]} 29. Rh1 {[%emt 0:00:04]} Nf6 {[%emt 0:00:09]} 30. Rab1 {[%emt 0:00:11]} Qh8 {[%emt 0:00:10]} 31. b4 {[%emt 0:00:04]} Qc8 {[%emt 0:00:07]} 32. b5 {[%emt 0:00:06]} Nxg4 {[%emt 0:00:11]} 33. Nxg4 {[%emt 0:00:09]} Bxg4 34. Rbg1 {[%emt 0:00:16]} Bxf3+ {[%emt 0:00:32]} 35. Kxf3 {[%emt 0:00:01]} Kg6 {[%emt 0:00:11]} 36. a4 {[%emt 0:00:08]} Qd8 {[%emt 0:00:02]} 37. Ke2 {[%emt 0:00:09]} Qa5 {[%emt 0:00:01]} 38. Kd3 {[%emt 0:00:04]} Bh6 {[%emt 0:00:10]} 39. f3 {[%emt 0:00:02]} Qb6 {[%emt 0:00:07]} 40. Rh2 {[%emt 0:00:02]} Qa5 {[%emt 0:00:07]} 41. Rgh1 {[%emt 0:00:00]} Bg7 {[%emt 0:00:00]} 42. Rg2 {[%emt 0:00:01]} Bh6 {[%emt 0:00:00]} 43. Rb1 {[%emt 0:00:00]} Qb6 {[%emt 0:00:00]} 44. Rh1 {[%emt 0:00:17]} Bg7 {[%emt 0:00:00]} 1/2-1/2

[Event "3rd FIDE WCCC Rapid G12 2019"]
[Site "Minsk"]
[Date "2019.08.17"]
[Round "7.4"]
[White "Babic, Masa"]
[Black "Ivanytska, Liudmyla"]
[Result "1-0"]
[ECO "A08"]
[WhiteElo "1719"]
[BlackElo "1539"]
[Annotator "NA"]
[PlyCount "140"]
[EventDate "2019.08.16"]
[EventType "swiss"]
[EventCountry "BLR"]
[SourceTitle "playchess.com"]
[Source "ChessBase"]
[SourceQuality "1"]
[TimeControl "600+5"]

1. Nf3 {[%emt 0:00:00]} d5 {[%emt 0:00:00]} 2. g3 {[%emt 0:00:00]} c5 {[%emt 0:00:00]} 3. Bg2 {[%emt 0:00:00]} e6 {[%emt 0:00:00]} 4. O-O {[%emt 0:00:00]} Nf6 {[%emt 0:00:00]} 5. c4 {[%emt 0:00:03]} Be7 {[%emt 0:00:02]} 6. cxd5 {[%emt 0:00:04]} exd5 {[%emt 0:00:01]} 7. d4 {[%emt 0:00:02]} b6 {[%emt 0:00:07]} 8. b3 {[%emt 0:00:15]} Be6 {[%emt 0:00:01]} 9. Bb2 {[%emt 0:00:11]} Nbd7 {[%emt 0:00:01]} 10. Nc3 {[%emt 0:00:17]} O-O {[%emt 0:00:04]} 11. Ne5 {[%emt 0:00:20]} Rc8 {[%emt 0:00:50]} 12. Qd3 {[%emt 0:01:42]} cxd4 {[%emt 0:00:24]} 13. Qxd4 {[%emt 0:00:25]} Bc5 {[%emt 0:00:04]} 14. Qf4 {[%emt 0:00:10]} Nxe5 {[%emt 0:00:46]} 15. Qxe5 {[%emt 0:00:15]} Ng4 {[%emt 0:00:14]} 16. Qf4 {[%emt 0:00:05]} Bd6 {[%emt 0:00:19]} 17. Qd2 {[%emt 0:00:35]} Bb4 {[%emt 0:00:24]} 18. a3 {[%emt 0:00:14]} d4 {[%emt 0:00:36]} 19. axb4 {[%emt 0:00:05]} dxc3 {[%emt 0:00:01]} 20. Bxc3 {[%emt 0:00:14]} Qxd2 21. Bxd2 {[%emt 0:00:01]} Rc2 {[%emt 0:00:06]} 22. Bf4 {[%emt 0:00:28]} Bxb3 {[%emt 0:00:15]} 23. Rxa7 {[%emt 0:00:09]} Bc4 {[%emt 0:00:04]} 24. Be4 {[%emt 0:01:08]} Rb2 {[%emt 0:00:12]} 25. Bf3 {[%emt 0:00:36]} Bxe2 {[%emt 0:00:11]} 26. Bxe2 {[%emt 0:00:46]} Rxe2 {[%emt 0:00:02]} 27. Rb7 {[%emt 0:00:02]} Re6 {[%emt 0:00:21]} 28. Rd1 {[%emt 0:01:12]} h6 {[%emt 0:00:14]} 29. h3 {[%emt 0:00:09]} Nf6 {[%emt 0:00:13]} 30. Rd6 {[%emt 0:00:05]} Re1+ {[%emt 0:00:27]} 31. Kg2 {[%emt 0:00:02]} Re2 {[%emt 0:00:28]} 32. Be3 {[%emt 0:01:16]} Re8 {[%emt 0:00:22]} 33. Kf3 {[%emt 0:00:10]} Rb2 {[%emt 0:00:02]} 34. Rbxb6 {[%emt 0:00:25]} Rb3 {[%emt 0:00:04]} 35. Rd4 {[%emt 0:00:18]} Kh7 {[%emt 0:00:48]} 36. Rb7 {[%emt 0:00:25]} Kg8 {[%emt 0:00:07]} 37. Rd6 {[%emt 0:00:10]} Rb2 {[%emt 0:01:08]} 38. g4 {[%emt 0:00:18]} Ne4 {[%emt 0:00:14]} 39. Rd4 {[%emt 0:00:02]} Nf6 {[%emt 0:00:12]} 40. Rf4 {[%emt 0:00:05]} Rb3 {[%emt 0:00:14]} 41. h4 {[%emt 0:00:04]} Rf8 {[%emt 0:00:15]} 42. g5 {[%emt 0:00:14]} hxg5 {[%emt 0:00:14]} 43. hxg5 {[%emt 0:00:00]} Nd5 {[%emt 0:00:01]} 44. Rd4 {[%emt 0:00:04]} Nxe3 {[%emt 0:00:03]} 45. fxe3 {[%emt 0:00:01]} Re8 {[%emt 0:00:01]} 46. Re4 {[%emt 0:00:04]} Rf8 {[%emt 0:00:08]} 47. Ree7 {[%emt 0:00:05]} Rb1 {[%emt 0:00:02]} 48. b5 {[%emt 0:00:05]} Rf1+ {[%emt 0:00:01]} 49. Ke2 {[%emt 0:00:01]} Rg1 {[%emt 0:00:02]} 50. b6 {[%emt 0:00:03]} Rxg5 {[%emt 0:00:02]} 51. Rbc7 {[%emt 0:00:02]} Rg2+ {[%emt 0:00:07]} 52. Kd3 {[%emt 0:00:01]} Rb2 {[%emt 0:00:06]} 53. b7 {[%emt 0:00:02]} Kh7 {[%emt 0:00:04]} 54. Re5 {[%emt 0:00:13]} Kg6 {[%emt 0:00:16]} 55. Rc8 {[%emt 0:00:05]} Rb3+ {[%emt 0:00:23]} 56. Ke2 {[%emt 0:00:02]} Rb2+ {[%emt 0:00:15]} 57. Kf3 {[%emt 0:00:01]} f6 {[%emt 0:00:42]} 58. Rxf8 {[%emt 0:00:05]} Rxb7 {[%emt 0:00:03]} 59. Re4 {[%emt 0:00:02]} f5 {[%emt 0:00:04]} 60. Rf4 {[%emt 0:00:01]} Rb5 {[%emt 0:00:02]} 61. e4 {[%emt 0:00:06]} Rb3+ {[%emt 0:00:06]} 62. Kg2 {[%emt 0:00:04]} Rb2+ {[%emt 0:00:01]} 63. Kg3 {[%emt 0:00:01]} Rb3+ {[%emt 0:00:09]} 64. Rf3 {[%emt 0:00:01]} Rxf3+ {[%emt 0:00:23]} 65. Kxf3 {[%emt 0:00:01]} fxe4+ {[%emt 0:00:01]} 66. Kxe4 {[%emt 0:00:02]} Kg5 {[%emt 0:00:01]} 67. Kf3 {[%emt 0:00:02]} Kh4 {[%emt 0:00:02]} 68. Rh8+ {[%emt 0:00:04]} Kg5 {[%emt 0:00:03]} 69. Rh5+ {[%emt 0:00:00]} Kf6 {[%emt 0:00:00]} 70. Rg5 {[%emt 0:00:00]} Ke7 1-0